fUSD/lending_fUSD_20260218
["ID","MTS","AMOUNT","RATE_DAILY","PERIOD"]
[405935808,1771426249251,-600.0,0.0001405,2]
[405935809,1771426249260,-608.63697706,0.0001405,2]
[405935810,1771426249270,-900.0,0.0001405,2]
[405935811,1771426249279,-500.0,0.0001405,2]
[405935812,1771426249288,-1300.0,0.0001405,2]
[405935813,1771426249297,-900.0,0.0001405,2]
[405935814,1771426249308,-600.0,0.0001405,2]
[405935815,1771426249317,-1300.0,0.0001405,2]
[405935816,1771426249327,-900.0,0.0001405,2]
[405935817,1771426249336,-600.0,0.0001405,2]
[405935818,1771426249345,-500.0,0.0001405,2]
[405935819,1771426249354,-800.0,0.0001405,2]
[405935820,1771426249363,-900.0,0.0001405,2]
[405935821,1771426249372,-600.0,0.0001405,2]
[405935822,1771426249381,-500.0,0.0001405,2]
[405935823,1771426249391,-1300.0,0.0001405,2]
[405935824,1771426249400,-800.0,0.0001405,2]
[405935825,1771426249410,-900.0,0.0001405,2]
[405935826,1771426249419,-600.0,0.0001405,2]
[405935827,1771426249429,-500.0,0.0001405,2]
[405935828,1771426249438,-1300.0,0.0001405,2]
[405935829,1771426249448,-800.0,0.0001405,2]
[405935830,1771426249457,-600.0,0.0001405,2]
[405935831,1771426249467,-900.0,0.0001405,2]
[405935832,1771426249476,-500.0,0.0001405,2]
[405935833,1771426249486,-1300.0,0.0001405,2]
[405935834,1771426249496,-800.0,0.0001405,2]
[405935835,1771426249505,-500.0,0.0001405,2]
[405935836,1771426249515,-1300.0,0.0001405,2]
[405935837,1771426249525,-800.0,0.0001405,2]
[405935838,1771426249535,-600.0,0.0001405,2]
[405935839,1771426249545,-900.0,0.0001405,2]
[405935840,1771426249557,-1300.0,0.0001405,2]
[405935841,1771426249567,-500.0,0.0001405,2]
[405935842,1771426249576,-800.0,0.0001405,2]
[405935843,1771426249585,-600.0,0.0001405,2]
[405935844,1771426249595,-900.0,0.0001405,2]
[405935845,1771426249642,-500.0,0.0001405,2]
[405935846,1771426249651,-500.0,0.0001405,2]
[405935847,1771426249660,-800.0,0.0001405,2]
[405935848,1771426249669,-500.0,0.0001405,2]
[405935849,1771426249678,-800.0,0.0001405,2]
[405935850,1771426249687,-500.0,0.0001405,2]
[405935851,1771426249696,-500.0,0.0001405,2]
[405935852,1771426249705,-800.0,0.0001405,2]
[405935853,1771426249714,-597.06449526,0.0001405,2]
[405935854,1771426249723,-800.0,0.0001405,2]
[405935855,1771426249732,-800.0,0.0001405,2]
[405935856,1771426249741,-800.0,0.0001405,2]
[405935857,1771426249750,-800.0,0.0001405,2]
[405935858,1771426249759,-800.0,0.0001405,2]
[405935859,1771426249768,-500.0,0.0001405,2]
[405935860,1771426249777,-500.0,0.0001405,2]
[405935861,1771426249786,-500.0,0.0001405,2]
[405935862,1771426249795,-500.0,0.0001405,2]
[405935863,1771426249805,-500.0,0.0001405,2]
[405935864,1771426249815,-500.0,0.0001405,2]
[405935865,1771426249824,-531.83173779,0.0001405,2]
[405935866,1771426249834,-500.0,0.0001405,2]
[405935867,1771426249842,-500.0,0.0001405,2]
[405935868,1771426249851,-500.0,0.0001405,2]
[405935869,1771426249860,-500.0,0.0001405,2]
[405935870,1771426249869,-2286.57936952,0.0001421,7]
[405935871,1771426249879,-1000.0,0.00014275,2]
[405935872,1771426249888,-1000.0,0.00014275,2]
[405935873,1771426249897,-1003.02217796,0.00014275,2]
[405935874,1771426249906,-1000.0,0.00014275,2]
[405935875,1771426249915,-1000.0,0.00014275,2]
[405935876,1771426249924,-1000.0,0.00014275,2]
[405935877,1771426249933,-696.10690076,0.00014275,2]
[405935878,1771426249942,-1000.0,0.00014275,2]
[405935879,1771426249951,-1000.0,0.00014275,2]
[405935880,1771426249961,-1000.0,0.00014275,2]
[405935881,1771426249970,-1067.47328951,0.00014275,2]
[405935882,1771426249980,-1000.0,0.00014275,2]
[405935883,1771426249989,-1000.0,0.00014275,2]
[405935884,1771426249998,-500.0,0.00014275,2]
[405935885,1771426250007,-1000.0,0.00014275,2]
[405935886,1771426250016,-1000.0,0.00014275,2]
[405935887,1771426250025,-1000.0,0.00014275,2]
[405935888,1771426250034,-1000.0,0.00014275,2]
[405935889,1771426250043,-1000.0,0.00014275,2]
[405935890,1771426250053,-512.09053139,0.00014275,2]
[405935891,1771426250066,-477.33821748,0.00014275,2]
[405935892,1771426250075,-508.58168582,0.00014275,2]
[405935893,1771426250084,-1000.0,0.00014275,2]
[405935894,1771426250094,-1000.0,0.00014275,2]
[405935895,1771426250102,-1000.0,0.00014275,2]
[405935896,1771426250112,-1000.0,0.00014275,2]
[405935897,1771426250120,-552.89419638,0.00014275,2]
[405935898,1771426250129,-1003.65271303,0.00014275,2]
[405935899,1771426250143,-503.21395664,0.00014275,2]
[405935900,1771426250152,-1000.0,0.00014275,2]
[405935901,1771426250161,-561.93408671,0.00014275,2]
[405935902,1771426250170,-1003.00619934,0.00014275,2]
[405935903,1771426250181,-1000.0,0.00014275,2]
[405935904,1771426250190,-1000.0,0.00014275,2]
[405935905,1771426250199,-1000.0,0.00014275,2]
[405935906,1771426250208,-1000.0,0.00014275,2]
[405935907,1771426250218,-1000.0,0.00014275,2]
[405935908,1771426250227,-1001.64879923,0.00014275,2]
[405935909,1771426250236,-3861.15,0.00014384,2]
[405935910,1771426250245,-150.2245636,0.0001456,2]
[405935911,1771426250254,-6520.3981548,0.00014578,2]
[405935912,1771426250262,-1779.5289932,0.00014578,2]
[405935913,1771426250271,-348.354952,0.00014643,7]
[405935914,1771426250281,-348.84,0.00014647,14]
[405935915,1771426250290,-514.69,0.00014721,2]
[405935916,1771426250299,-968.42,0.00014721,2]
[405935917,1771426250311,-500.0,0.00014722,2]
[405935918,1771426250319,-500.0,0.00014722,2]
[405935919,1771426250328,-500.0,0.00014722,2]
[405935920,1771426250337,-500.0,0.00014722,2]
[405935921,1771426250346,-500.0,0.00014722,2]
[405935922,1771426250355,-500.0,0.00014722,2]
[405935923,1771426250363,-500.0,0.00014722,2]
[405935924,1771426250372,-500.0,0.00014722,2]
[405935925,1771426250382,-500.0,0.00014722,2]
[405935926,1771426250392,-500.0,0.00014722,2]
[405935927,1771426250401,-500.0,0.00014722,2]
[405935928,1771426250410,-500.0,0.00014722,2]
[405935929,1771426250419,-500.0,0.00014722,2]
[405935930,1771426250428,-500.0,0.00014722,2]
[405935931,1771426250437,-500.0,0.00014722,2]
[405935932,1771426250446,-500.0,0.00014722,2]
[405935933,1771426250456,-500.0,0.00014722,2]
[405935934,1771426250465,-500.0,0.00014722,2]
[405935935,1771426250475,-500.0,0.00014722,2]
[405935936,1771426250484,-500.0,0.00014722,2]
[405935937,1771426250493,-500.0,0.00014722,2]
[405935938,1771426250502,-500.0,0.00014722,2]
[405935939,1771426250511,-500.0,0.00014722,2]
[405935940,1771426250520,-500.0,0.00014722,2]
[405935941,1771426250531,-500.0,0.00014722,2]
[405935942,1771426250540,-500.0,0.00014722,2]
[405935943,1771426250549,-500.0,0.00014722,2]
[405935944,1771426250560,-500.0,0.00014722,2]
[405935945,1771426250569,-500.0,0.00014722,2]
[405935946,1771426250579,-500.0,0.00014722,2]
[405935947,1771426250588,-500.0,0.00014722,2]
[405935948,1771426250598,-500.0,0.00014722,2]
[405935949,1771426250607,-500.0,0.00014722,2]
[405935950,1771426250615,-500.0,0.00014722,2]
[405935951,1771426250625,-500.0,0.00014722,2]
[405935952,1771426250634,-500.0,0.00014722,2]
[405935953,1771426250643,-500.0,0.00014722,2]
[405935954,1771426250652,-500.0,0.00014722,2]
[405935955,1771426250660,-500.0,0.00014722,2]
[405935956,1771426250670,-500.0,0.00014722,2]
[405935957,1771426250678,-500.0,0.00014722,2]
[405935958,1771426250687,-1406.97,0.00014722,2]
[405935959,1771426250696,-1406.97,0.00014722,2]
[405935960,1771426250707,-1406.97,0.00014722,2]
[405935961,1771426250719,-1406.97,0.00014722,2]
[405935962,1771426250728,-1406.97,0.00014722,2]
[405935963,1771426250737,-1406.97,0.00014722,2]
[405935964,1771426250746,-1406.97,0.00014722,2]
[405935965,1771426250755,-1406.97,0.00014722,2]
[405935966,1771426250764,-1406.97,0.00014722,2]
[405935967,1771426250773,-1406.97,0.00014722,2]
[405935968,1771426250782,-1406.97,0.00014722,2]
[405935969,1771426250791,-1406.97,0.00014722,2]
[405935970,1771426250801,-1406.97,0.00014722,2]
[405935971,1771426250811,-1406.97,0.00014722,2]
[405935972,1771426250821,-611.22,0.00014722,2]
[405935973,1771426250830,-611.22,0.00014722,2]
[405935974,1771426250839,-611.22,0.00014722,2]
[405935975,1771426250848,-611.22,0.00014722,2]
[405935976,1771426250858,-611.22,0.00014722,2]
[405935977,1771426250867,-611.22,0.00014722,2]
[405935978,1771426250876,-611.22,0.00014722,2]
[405935979,1771426250886,-611.22,0.00014722,2]
[405935980,1771426250894,-611.22,0.00014722,2]
[405935981,1771426250904,-611.22,0.00014722,2]
[405935982,1771426250913,-611.22,0.00014722,2]
[405935983,1771426250922,-611.22,0.00014722,2]
[405935984,1771426250931,-611.22,0.00014722,2]
[405935985,1771426250940,-611.22,0.00014722,2]
[405935986,1771426250950,-500.0,0.00014722,2]
[405935987,1771426250959,-500.0,0.00014722,2]
[405935988,1771426250968,-500.0,0.00014722,2]
[405935989,1771426250977,-500.0,0.00014722,2]
[405935990,1771426250987,-500.0,0.00014722,2]
[405935991,1771426250996,-500.0,0.00014722,2]
[405935992,1771426251004,-500.0,0.00014722,2]
[405935993,1771426251013,-500.0,0.00014722,2]
[405935994,1771426251022,-500.0,0.00014722,2]
[405935995,1771426251031,-500.0,0.00014722,2]
[405935996,1771426251040,-500.0,0.00014722,2]
[405935997,1771426251049,-500.0,0.00014722,2]
[405935998,1771426251061,-500.0,0.00014722,2]
[405935999,1771426251070,-500.0,0.00014722,2]
[405936000,1771426251080,-500.0,0.00014722,2]
[405936001,1771426251089,-500.0,0.00014722,2]
[405936002,1771426251098,-500.0,0.00014722,2]
[405936003,1771426251107,-500.0,0.00014722,2]
[405936004,1771426251116,-500.0,0.00014722,2]
[405936005,1771426251125,-500.0,0.00014722,2]
[405936006,1771426251135,-500.0,0.00014722,2]
[405936007,1771426251148,-500.0,0.00014722,2]
[405936008,1771426251157,-500.0,0.00014722,2]
[405936009,1771426251166,-500.0,0.00014722,2]
[405936010,1771426251175,-500.0,0.00014722,2]
[405936011,1771426251186,-500.0,0.00014722,2]
[405936012,1771426251196,-551.5455423,0.00014722,2]
[405936013,1771426251205,-500.0,0.00014722,2]
[405936014,1771426251214,-500.0,0.00014722,2]
[405936015,1771426251223,-500.0,0.00014722,2]
[405936016,1771426251232,-196.13541993,0.00014722,2]
[405936017,1771426251241,-500.0,0.00014722,2]
[405936018,1771426251251,-500.0,0.00014722,2]
[405936019,1771426251261,-500.0,0.00014722,2]
[405936020,1771426251270,-500.0,0.00014722,2]
[405936021,1771426251279,-500.0,0.00014722,2]
[405936022,1771426251288,-184.20577534,0.00014722,2]
[405936023,1771426251297,-500.0,0.00014722,2]
[405936024,1771426251307,-511.14294452,0.00014722,2]
[405936025,1771426251318,-500.0,0.00014722,2]
[405936026,1771426251327,-500.0,0.00014722,2]
[405936027,1771426251336,-500.0,0.00014722,2]
[405936028,1771426251345,-500.0,0.00014722,2]
[405936029,1771426251354,-500.0,0.00014722,2]
[405936030,1771426251363,-500.0,0.00014722,2]
[405936031,1771426251372,-500.0,0.00014722,2]
[405936032,1771426251382,-500.0,0.00014722,2]
[405936033,1771426251391,-500.0,0.00014722,2]
[405936034,1771426251401,-500.0,0.00014722,2]
[405936035,1771426251410,-500.0,0.00014722,2]
[405936036,1771426251419,-312.74253882,0.00014722,2]
[405936037,1771426251429,-500.0,0.00014722,2]
[405936038,1771426251438,-500.0,0.00014722,2]
[405936039,1771426251448,-500.0,0.00014722,2]
[405936040,1771426251457,-509.72616168,0.00014722,2]
[405936041,1771426251466,-502.06391581,0.00014722,2]
[405936042,1771426251476,-500.0,0.00014722,2]
[405936043,1771426251486,-500.0,0.00014722,2]
[405936044,1771426251496,-500.0,0.00014722,2]
[405936045,1771426251505,-500.0,0.00014722,2]
[405936046,1771426251514,-486.30947207,0.00014722,2]
[405936047,1771426251524,-688.12,0.00014722,2]
[405936048,1771426251534,-688.12,0.00014722,2]
[405936049,1771426251544,-688.12,0.00014722,2]
[405936050,1771426251554,-688.12,0.00014722,2]
[405936051,1771426251566,-688.12,0.00014722,2]
[405936052,1771426251575,-688.12,0.00014722,2]
[405936053,1771426251584,-688.12,0.00014722,2]
[405936054,1771426251594,-688.12,0.00014722,2]
[405936055,1771426251603,-688.12,0.00014722,2]
[405936056,1771426251613,-688.12,0.00014722,2]
[405936057,1771426251622,-688.12,0.00014722,2]
[405936058,1771426251632,-688.12,0.00014722,2]
[405936059,1771426251642,-688.12,0.00014722,2]
[405936060,1771426251651,-688.12,0.00014722,2]
[405936061,1771426251660,-528.95515963,0.00014722,2]
[405936062,1771426251669,-500.0,0.00014722,2]
[405936063,1771426251679,-500.0,0.00014722,2]
[405936064,1771426251687,-500.0,0.00014722,2]
[405936065,1771426251697,-500.0,0.00014722,2]
[405936066,1771426251706,-500.0,0.00014722,2]
[405936067,1771426251715,-500.0,0.00014722,2]
[405936068,1771426251725,-500.0,0.00014722,2]
[405936069,1771426251734,-500.0,0.00014722,2]
[405936070,1771426251743,-500.0,0.00014722,2]
[405936071,1771426251752,-500.0,0.00014722,2]
[405936072,1771426251761,-500.0,0.00014722,2]
[405936073,1771426251770,-500.0,0.00014722,2]
[405936074,1771426251779,-591.86390297,0.00014722,2]
[405936075,1771426251789,-500.0,0.00014722,2]
[405936076,1771426251799,-500.0,0.00014722,2]
[405936077,1771426251810,-500.0,0.00014722,2]
[405936078,1771426251819,-500.0,0.00014722,2]
[405936079,1771426251828,-500.0,0.00014722,2]
[405936080,1771426251837,-500.0,0.00014722,2]
[405936081,1771426251846,-500.0,0.00014722,2]
[405936082,1771426251856,-500.0,0.00014722,2]
[405936083,1771426251867,-500.0,0.00014722,2]
[405936084,1771426251877,-185.0783203,0.00014722,2]
[405936085,1771426251886,-500.0,0.00014722,2]
[405936086,1771426251895,-500.0,0.00014722,2]
[405936087,1771426251904,-500.0,0.00014722,2]
[405936088,1771426251913,-500.0,0.00014722,2]
[405936089,1771426251923,-500.0,0.00014722,2]
[405936090,1771426251932,-693.3919763,0.00014768,2]
[405936091,1771426251942,-578.20924308,0.00014768,2]
[405936092,1771426251952,-277.35679052,0.00014768,2]
[405936093,1771426251961,-174.61919141,0.00014768,2]
[405936094,1771426251970,-259.07488276,0.00014768,2]
[405936095,1771426251980,-719.04747942,0.00014823,2]
[405936096,1771426251989,-500.0,0.00014823,2]
[405936097,1771426251998,-1500.0,0.00014823,2]
[405936098,1771426252008,-187.09841863,0.00014823,2]
[405936099,1771426252016,-1500.0,0.00014823,2]
[405936100,1771426252026,-1500.0,0.00014823,2]
[405936101,1771426252035,-506.41325356,0.00014823,2]
[405936102,1771426252052,-1500.0,0.00014823,2]
[405936103,1771426252064,-512.08661125,0.00014823,2]
[405936104,1771426252074,-1500.0,0.00014823,2]
[405936105,1771426252083,-534.53110943,0.00014823,2]
[405936106,1771426252093,-1500.0,0.00014823,2]
[405936107,1771426252102,-1500.0,0.00014823,2]
[405936108,1771426252111,-1500.0,0.00014823,2]
[405936109,1771426252120,-552.47642339,0.00014844,7]
[405936110,1771426252130,-745.65223616,0.00014878,2]
[405936111,1771426252140,-773.2413689,0.00014933,2]
[405936112,1771426252152,-1454.8974845,0.00014953,2]
[405936113,1771426252161,-397.0665892,0.00014953,2]
[405936114,1771426252170,-801.85129955,0.00014988,2]
[405936115,1771426252179,-2146.46674762,0.00015,14]
[405936116,1771426252189,-250.0,0.00015,2]
[405936117,1771426252198,-831.51979763,0.00015043,2]
[405936118,1771426252207,-3861.15,0.00015068,2]
[405936119,1771426252219,-900.0,0.00015068,2]
[405936120,1771426252229,-862.28603014,0.00015098,2]
[405936121,1771426252238,-894.19061326,0.00015153,2]
[405936122,1771426252248,-927.27566595,0.00015208,2]
[405936123,1771426252257,-961.58486559,0.00015263,2]
[405936124,1771426252266,-287.61899177,0.00015316,2]
[405936125,1771426252276,-181.08010149,0.00015316,2]
[405936126,1771426252285,-997.16350561,0.00015318,2]
[405936127,1771426252294,-348.84,0.00015332,2]
[405936128,1771426252304,-1465.77482029,0.00015371,2]
[405936129,1771426252314,-2000.0,0.00015371,2]
[405936130,1771426252323,-1960.08113192,0.00015371,2]
[405936131,1771426252333,-1801.75028282,0.00015371,2]
[405936132,1771426252342,-830.45995604,0.00015371,2]
[405936133,1771426252351,-2000.0,0.00015371,2]
[405936134,1771426252361,-1191.23979414,0.00015371,2]
[405936135,1771426252371,-1605.03701467,0.00015371,2]
[405936136,1771426252380,-30411.8841936,0.00015406,2]
[405936137,1771426252390,-200.0,0.00015647,2]
[405936138,1771426252399,-3861.15,0.00015753,2]
[405936139,1771426252409,-6785.8085905,0.00015802,2]
[405936140,1771426252419,-298.26089446,0.00015864,2]
[405936141,1771426252428,-187.78006525,0.00015864,2]
[405936142,1771426252438,-1783.85919121,0.00015919,2]
[405936143,1771426252448,-2500.0,0.00015919,2]
[405936144,1771426252459,-150.0,0.00016,2]
[405936145,1771426252468,-150.0,0.00016,2]
[405936146,1771426252478,-150.0,0.00016,2]
[405936147,1771426252488,-150.0,0.00016,2]
[405936148,1771426252498,-150.0,0.00016,2]
[405936149,1771426252508,-150.0,0.00016,2]
[405936150,1771426252517,-150.0,0.00016,2]
[405936151,1771426252527,-506.0,0.0001605,2]
[405936152,1771426252537,-356.9,0.00016215,2]
[405936153,1771426252547,-265.07,0.0001627,2]
[405936154,1771426252557,-309.29654756,0.00016412,2]
[405936155,1771426252568,-194.72792766,0.00016412,2]
[405936156,1771426252578,-841.0,0.00016438,2]
[405936157,1771426252587,-3861.15,0.00016438,2]
[405936158,1771426252597,-900.0,0.00016438,2]
[405936159,1771426252607,-227.84,0.00016438,2]
[405936160,1771426252617,-3000.0,0.00016467,2]
[405936161,1771426252628,-841.0,0.00016712,2]
[405936162,1771426252638,-167.38,0.00016712,2]
[405936163,1771426252648,-2836.0,0.0001672,2]
[405936164,1771426252657,-500.0,0.00016754,2]
[405936165,1771426252666,-1406.97,0.00016754,2]
[405936166,1771426252676,-611.22,0.00016754,2]
[405936167,1771426252686,-500.0,0.00016754,2]
[405936168,1771426252695,-688.12,0.00016754,2]
[405936169,1771426252704,-2556.33728001,0.000169,4]
[405936170,1771426252714,-514.69,0.00016946,2]
[405936171,1771426252723,-514.69,0.00016946,2]
[405936172,1771426252732,-514.69,0.00016946,2]
[405936173,1771426252742,-514.69,0.00016946,2]
[405936174,1771426252752,-514.79,0.00016946,2]
[405936175,1771426252761,-968.42,0.00016946,2]
[405936176,1771426252771,-968.42,0.00016946,2]
[405936177,1771426252780,-968.42,0.00016946,2]
[405936178,1771426252790,-968.42,0.00016946,2]
[405936179,1771426252799,-968.47,0.00016946,2]
[405936180,1771426252811,-320.74051982,0.0001696,2]
[405936181,1771426252820,-201.93286099,0.0001696,2]
[405936182,1771426252830,-506.0,0.00016977,2]
[405936183,1771426252839,-841.0,0.00016986,2]
[405936184,1771426252849,-1961.0,0.00016986,2]
[405936185,1771426252859,-300.0,0.00017,2]
[405936186,1771426252869,-3840.02621828,0.00017,2]
[405936187,1771426253040,-340.78676636,0.00017,2]
[405936188,1771426253053,-1286.26560742,0.00017,2]
[405936189,1771426253067,-102413.67907506,0.00017,2]
[405936190,1771426253083,-208534.33672268,0.00017,2]
[405936191,1771426253129,-1160.42649548,0.00012009,2]
[405936192,1771426253144,-767.49759895,0.00012009,2]
[405936193,1771426253156,-116.7996187,0.00012009,2]
[405936194,1771426253166,-569.98,0.00016438,2]
[405936195,1771426253175,-19353.2203813,0.00017,2]
[405936196,1771426253188,-2799.58221255,0.00017,2]
[405936197,1771426253200,-7755.77837577,0.00017,2]
[405936198,1771426253213,-12786.72548836,0.00017,2]
[405936199,1771426253227,-528.5,0.00017,2]
[405936200,1771426253239,-433.7374999,0.00017,2]
[405936201,1771426261422,10000.0,6.562e-05,2]
[405936202,1771426275165,0.01,6.562e-05,2]
[405936203,1771426275188,9999.99,6.562e-05,2]
[405936204,1771426290156,0.02,6.562e-05,2]
[405936205,1771426290177,9999.98,6.562e-05,2]
[405936206,1771426304867,0.03,6.562e-05,2]
[405936207,1771426304890,9999.97,6.562e-05,2]
[405936208,1771426320227,0.04,6.562e-05,2]
[405936209,1771426320251,9999.96,6.562e-05,2]
[405936210,1771426329492,0.05,6.562e-05,2]
[405936211,1771426329514,9999.95,6.562e-05,2]
[405936212,1771426340473,0.06,6.562e-05,2]
[405936213,1771426340495,9999.94,6.562e-05,2]
[405936214,1771426352793,0.07,6.562e-05,2]
[405936215,1771426352817,9999.93,6.562e-05,2]
[405936216,1771426362829,0.08,6.562e-05,2]
[405936217,1771426362850,9999.92,6.562e-05,2]
[405936218,1771426382319,0.09,6.562e-05,2]
[405936219,1771426382343,9999.91,6.562e-05,2]
[405936220,1771426404524,0.1,6.562e-05,2]
[405936221,1771426404775,-9999.9,6.562e-05,2]
[405936222,1771426404804,-228.73521454,7.523e-05,2]
[405936223,1771426421235,9579.34,6.554e-05,2]
[405936224,1771426445827,174.0,6.554e-05,3]
[405936225,1771426475157,10000.0,0.00018,30]
[405936226,1771426483175,10000.0,0.00018,30]
[405936227,1771426497727,232.0,0.00018,30]
[405936228,1771426778979,-251.69343799,7.379e-05,2]
[405936229,1771426871942,-1200.0,7.406e-05,2]
[405936230,1771426871971,-150.0,7.406e-05,2]
[405936231,1771426872000,-300.0,7.406e-05,2]
[405936232,1771426913938,-598.642,7.259e-05,2]
[405936233,1771427022936,-300.0,7.306e-05,2]
[405936234,1771427022964,-150.0,7.306e-05,2]
[405936235,1771427022991,-300.0,7.306e-05,2]
[405936236,1771427075212,-5923.078725,7.307e-05,2]
[405936237,1771427119088,-300.0,7.306e-05,2]
[405936238,1771427119118,-1200.0,7.306e-05,2]
[405936239,1771427119170,-17000.0,7.307e-05,2]
[405936240,1771427139244,-20000.0,7.307e-05,2]
[405936242,1771427200884,150.0,0.00011233,120]
[405936245,1771427308571,-200.0,6.7e-05,2]
[405936246,1771427308599,-400.0,6.8e-05,2]
[405936247,1771427308628,-700.0,6.9e-05,2]
[405936248,1771427308657,-900.0,7e-05,2]
[405936249,1771427336200,3653.9,0.00018,30]
[405936252,1771427431682,-1234.38606924,6.7e-05,2]
[405936253,1771427431694,-1007.83045876,6.7e-05,2]
[405936254,1771427431705,-257.783472,6.7e-05,2]
[405936255,1771427431715,-1068.6677153,6.8e-05,2]
[405936256,1771427431766,-4031.3322847,6.8e-05,2]
[405936257,1771427431776,-169.37597266,6.9e-05,2]
[405936258,1771427431787,-498.60816711,6.9e-05,2]
[405936259,1771427431842,-579.13469607,6.9e-05,2]
[405936260,1771427431854,-539.07428944,6.9e-05,2]
[405936275,1771427437743,-988.23777312,6.9e-05,2]
[405936276,1771427437807,-4925.5691016,6.9e-05,2]
[405936277,1771427437819,-2843.80843542,7e-05,2]
[405936278,1771427437830,-3478.75,7e-05,2]
[405936279,1771427437879,-3977.44156458,7e-05,2]
[405936280,1771427437890,-15469.0,7.178e-05,2]
[405936281,1771427437908,-2562.0,7.178e-05,2]
[405936282,1771427437924,-300.0,7.206e-05,2]
[405936283,1771427437934,-150.0,7.206e-05,2]
[405936284,1771427437943,-1200.0,7.206e-05,2]
[405936285,1771427437954,-300.0,7.206e-05,2]
[405936286,1771427437963,-3512.11875819,7.207e-05,2]
[405936287,1771427437978,-1349.90711029,7.207e-05,2]
[405936288,1771427437989,-1028.39219189,7.207e-05,2]
[405936289,1771427438001,-1188.74622491,7.207e-05,2]
[405936291,1771427440114,-3492920.83571472,7.207e-05,2]
[405936292,1771427440124,-2887.40769396,7.306e-05,2]
[405936293,1771427440133,-170.40667766,7.306e-05,2]
[405936294,1771427440143,-250.0,7.37e-05,2]
[405936295,1771427440152,-32222.0,7.507e-05,2]
[405936296,1771427440161,-250.0,7.896e-05,2]
[405936297,1771427440170,-420.0,7.926e-05,2]
[405936298,1771427440180,-255.0,7.926e-05,2]
[405936299,1771427440189,-1680.0,7.926e-05,2]
[405936300,1771427440198,-420.0,7.926e-05,2]
[405936301,1771427440207,-250.0,8.037e-05,2]
[405936302,1771427440217,-12502.040572,8.178e-05,2]
[405936303,1771427440227,-500.0,8.219e-05,2]
[405936304,1771427440236,-500.0,8.219e-05,2]
[405936305,1771427440246,-500.0,8.219e-05,2]
[405936306,1771427440257,-646.18827131,8.219e-05,2]
[405936307,1771427440267,-204.304563,8.245e-05,2]
[405936308,1771427440276,-500.0,8.267e-05,2]
[405936309,1771427440286,-245.86778969,8.367e-05,2]
[405936310,1771427440295,-307.32831336,8.367e-05,2]
[405936311,1771427440304,-500.92647612,8.367e-05,2]
[405936312,1771427440314,-500.0,8.367e-05,2]
[405936313,1771427440325,-500.0,8.367e-05,2]
[405936314,1771427440334,-500.0,8.367e-05,2]
[405936315,1771427440344,-500.0,8.367e-05,2]
[405936316,1771427440353,-500.0,8.367e-05,2]
[405936317,1771427440362,-500.0,8.367e-05,2]
[405936318,1771427440372,-500.0,8.367e-05,2]
[405936319,1771427440383,-500.0,8.367e-05,2]
[405936320,1771427440392,-500.0,8.367e-05,2]
[405936321,1771427440402,-500.0,8.367e-05,2]
[405936322,1771427440413,-306.32454784,8.367e-05,2]
[405936323,1771427440423,-500.0,8.367e-05,2]
[405936324,1771427440434,-500.87268816,8.367e-05,2]
[405936326,1771427440443,-98587.05001948,8.5e-05,2]
[405936327,1771427440452,-221.0,8.661e-05,2]
[405936328,1771427440461,-379.0,8.679e-05,2]